{"text_format":"3","workbook":"xlsx","n_sheets":2,"sheets":["Suas Despesas","Relatório"],"not_rendered":{"charts":2,"images":1,"defined_names":6},"read":"whole","date_system":"1900"}

{"sheet":"Suas Despesas","index":0,"n_rows":26,"n_cols":8,"rows_kept":26,"merged":[[1,1,1,7]]}
[]
[null,"Crie seu Orçamento alimentar. Verifique as dicas nas células no cabeçalho da tabela abaixo.\nVocê pode criar um relatório na planilha Relatório."]
[null,"Data","Categoria","O quê","Quantidade ","Preço \npor item","Preço \n(soma)","Local"]
[null,{"$f":"TODAY()","v":"2019-03-13"},"Doces","Balas",{"v":0.25,"d":"0.3"},{"v":6,"d":"R$ 6.00"},{"$f":"Despesas_Mensais[[#This Row],[Preço \npor item]]*Despesas_Mensais[[#This Row],[Quantidade ]]","v":{"v":1.5,"d":"R$ 1.50"}},"Supermercado"]
[null,{"$f":"TODAY()","v":"2019-03-13"},"Bebidas","Coca-Cola",{"v":1,"d":"1.0"},{"v":1,"d":"R$ 1.00"},{"$f":"Despesas_Mensais[[#This Row],[Preço \npor item]]*Despesas_Mensais[[#This Row],[Quantidade ]]","v":{"v":1,"d":"R$ 1.00"}},"Lanchonete"]
[null,{"$f":"TODAY()-1","v":"2019-03-12"},"Refeições prontas","Refeição",{"v":1,"d":"1.0"},{"v":28,"d":"R$ 28.00"},{"$f":"Despesas_Mensais[[#This Row],[Preço \npor item]]*Despesas_Mensais[[#This Row],[Quantidade ]]","v":{"v":28,"d":"R$ 28.00"}},"Lanchonete"]
[null,{"$f":"TODAY()-1","v":"2019-03-12"},"Carne","Carne bovina",1.2,{"v":15,"d":"R$ 15.00"},{"$f":"Despesas_Mensais[[#This Row],[Preço \npor item]]*Despesas_Mensais[[#This Row],[Quantidade ]]","v":{"v":18,"d":"R$ 18.00"}},"Supermercado"]
[null,{"$f":"TODAY()-1","v":"2019-03-12"},"Bebidas alcoólicas","Uísque",{"v":1,"d":"1.0"},{"v":25,"d":"R$ 25.00"},{"$f":"Despesas_Mensais[[#This Row],[Preço \npor item]]*Despesas_Mensais[[#This Row],[Quantidade ]]","v":{"v":25,"d":"R$ 25.00"}},"Supermercado"]
[null,{"$f":"TODAY()-2","v":"2019-03-11"},"Bebidas","Refrigerante",{"v":6,"d":"6.0"},{"v":1,"d":"R$ 1.00"},{"$f":"Despesas_Mensais[[#This Row],[Preço \npor item]]*Despesas_Mensais[[#This Row],[Quantidade ]]","v":{"v":6,"d":"R$ 6.00"}},"Entrega em casa"]
[null,{"$f":"TODAY()-2","v":"2019-03-11"},"Refeições prontas","Refeição",{"v":1,"d":"1.0"},{"v":10,"d":"R$ 10.00"},{"$f":"Despesas_Mensais[[#This Row],[Preço \npor item]]*Despesas_Mensais[[#This Row],[Quantidade ]]","v":{"v":10,"d":"R$ 10.00"}},"Entrega em casa"]
[null,{"$f":"TODAY()-2","v":"2019-03-11"},"Frutas e legumes","Maçãs",{"v":2,"d":"2.0"},{"v":5,"d":"R$ 5.00"},{"$f":"Despesas_Mensais[[#This Row],[Preço \npor item]]*Despesas_Mensais[[#This Row],[Quantidade ]]","v":{"v":10,"d":"R$ 10.00"}},"Entrega em casa"]
[null,{"$f":"TODAY()-2","v":"2019-03-11"},"Bebidas","Água",{"v":1,"d":"1.0"},{"v":1,"d":"R$ 1.00"},{"$f":"Despesas_Mensais[[#This Row],[Preço \npor item]]*Despesas_Mensais[[#This Row],[Quantidade ]]","v":{"v":1,"d":"R$ 1.00"}},"Supermercado"]
[null,{"$f":"TODAY()-3","v":"2019-03-10"},"Bebidas","Coca-Cola",{"v":1,"d":"1.0"},{"v":1,"d":"R$ 1.00"},{"$f":"Despesas_Mensais[[#This Row],[Preço \npor item]]*Despesas_Mensais[[#This Row],[Quantidade ]]","v":{"v":1,"d":"R$ 1.00"}},"Lanchonete"]
[null,{"$f":"TODAY()-3","v":"2019-03-10"},"Doces","Chocolate",{"v":2,"d":"2.0"},{"v":3,"d":"R$ 3.00"},{"$f":"Despesas_Mensais[[#This Row],[Preço \npor item]]*Despesas_Mensais[[#This Row],[Quantidade ]]","v":{"v":6,"d":"R$ 6.00"}},"Supermercado"]
[null,{"$f":"TODAY()-3","v":"2019-03-10"},"Doces","Balas",{"v":5,"d":"5.0"},{"v":1,"d":"R$ 1.00"},{"$f":"Despesas_Mensais[[#This Row],[Preço \npor item]]*Despesas_Mensais[[#This Row],[Quantidade ]]","v":{"v":5,"d":"R$ 5.00"}},"Supermercado"]
[null,{"$f":"TODAY()-3","v":"2019-03-10"},"Bebidas","Água",{"v":2,"d":"2.0"},{"v":0.75,"d":"R$ 0.75"},{"$f":"Despesas_Mensais[[#This Row],[Preço \npor item]]*Despesas_Mensais[[#This Row],[Quantidade ]]","v":{"v":1.5,"d":"R$ 1.50"}},"Cafeteria"]
[null,{"$f":"TODAY()-4","v":"2019-03-09"},"Refeições prontas","Arroz",{"v":1,"d":"1.0"},{"v":3.25,"d":"R$ 3.25"},{"$f":"Despesas_Mensais[[#This Row],[Preço \npor item]]*Despesas_Mensais[[#This Row],[Quantidade ]]","v":{"v":3.25,"d":"R$ 3.25"}},"Restaurante"]
[null,{"$f":"TODAY()-4","v":"2019-03-09"},"Carne","Carne bovina",0.6,{"v":12,"d":"R$ 12.00"},{"$f":"Despesas_Mensais[[#This Row],[Preço \npor item]]*Despesas_Mensais[[#This Row],[Quantidade ]]","v":{"v":7.199999999999999,"d":"R$ 7.20"}},"Supermercado"]
[null,{"$f":"TODAY()-4","v":"2019-03-09"},"Bebidas alcoólicas","Cerveja",{"v":1,"d":"1.0"},{"v":2,"d":"R$ 2.00"},{"$f":"Despesas_Mensais[[#This Row],[Preço \npor item]]*Despesas_Mensais[[#This Row],[Quantidade ]]","v":{"v":2,"d":"R$ 2.00"}},"Restaurante"]
[null,{"$f":"TODAY()-4","v":"2019-03-09"},"Bebidas","Refrigerante",{"v":1,"d":"1.0"},{"v":1,"d":"R$ 1.00"},{"$f":"Despesas_Mensais[[#This Row],[Preço \npor item]]*Despesas_Mensais[[#This Row],[Quantidade ]]","v":{"v":1,"d":"R$ 1.00"}},"Supermercado"]
[null,{"$f":"TODAY()-5","v":"2019-03-08"},"Refeições prontas","Refeição",{"v":1,"d":"1.0"},{"v":10,"d":"R$ 10.00"},{"$f":"Despesas_Mensais[[#This Row],[Preço \npor item]]*Despesas_Mensais[[#This Row],[Quantidade ]]","v":{"v":10,"d":"R$ 10.00"}},"Lanchonete"]
[null,{"$f":"TODAY()-5","v":"2019-03-08"},"Frutas e legumes","Bananas",{"v":2,"d":"2.0"},{"v":3,"d":"R$ 3.00"},{"$f":"Despesas_Mensais[[#This Row],[Preço \npor item]]*Despesas_Mensais[[#This Row],[Quantidade ]]","v":{"v":6,"d":"R$ 6.00"}},"Entrega em casa"]
[null,{"$f":"TODAY()-5","v":"2019-03-08"},"Bebidas","Coca-Cola",{"v":1,"d":"1.0"},{"v":0.75,"d":"R$ 0.75"},{"$f":"Despesas_Mensais[[#This Row],[Preço \npor item]]*Despesas_Mensais[[#This Row],[Quantidade ]]","v":{"v":0.75,"d":"R$ 0.75"}},"Supermercado"]
[null,{"$f":"TODAY()-5","v":"2019-03-08"},"Bebidas alcoólicas","Cerveja",{"v":1,"d":"1.0"},{"v":1,"d":"R$ 1.00"},{"$f":"Despesas_Mensais[[#This Row],[Preço \npor item]]*Despesas_Mensais[[#This Row],[Quantidade ]]","v":{"v":1,"d":"R$ 1.00"}},"Cafeteria"]
[null,{"$f":"TODAY()-5","v":"2019-03-08"},"Pão","Pães",{"v":5,"d":"5.0"},{"v":0.2,"d":"R$ 0.20"},{"$f":"Despesas_Mensais[[#This Row],[Preço \npor item]]*Despesas_Mensais[[#This Row],[Quantidade ]]","v":{"v":1,"d":"R$ 1.00"}},"Supermercado"]
[null,"Total",{"$nulls":4},{"$f":"SUBTOTAL(109,Despesas_Mensais[Preço \n(soma)])","v":{"v":146.2,"d":"R$ 146.20"}}]

{"sheet":"Relatório","index":1,"n_rows":29,"n_cols":6,"rows_kept":29,"merged":[[0,1,0,7],[5,1,5,2],[18,1,18,2]]}
[null,"Verifique suas despesas no período escolhido. "]
[]
[null,"Dia de início",{"$f":"TODAY()-1","v":"2019-03-12"},null,"Dia de término",{"$f":"TODAY()","v":"2019-03-13"}]
[]
[]
[null,"Despesas por Categoria de alimentação"]
[]
[null,"Categoria de alimentação","Despesas"]
[null,"Bebidas alcoólicas",{"$f":"SUMIFS(Despesas_Mensais[Preço \n(soma)],Despesas_Mensais[Data],\">=\"&Data_Inicial,Despesas_Mensais[Data],\"<=\"&Data_Final,Despesas_Mensais[Categoria],Despesas_Com_Comida_De_Gato[[#This Row],[Categoria de alimentação]])","v":{"v":25,"d":"R$ 25.00"}}]
[null,"Pão",{"$f":"SUMIFS(Despesas_Mensais[Preço \n(soma)],Despesas_Mensais[Data],\">=\"&Data_Inicial,Despesas_Mensais[Data],\"<=\"&Data_Final,Despesas_Mensais[Categoria],Despesas_Com_Comida_De_Gato[[#This Row],[Categoria de alimentação]])","v":{"v":0,"d":"R$ 0.00"}}]
[null,"Bebidas",{"$f":"SUMIFS(Despesas_Mensais[Preço \n(soma)],Despesas_Mensais[Data],\">=\"&Data_Inicial,Despesas_Mensais[Data],\"<=\"&Data_Final,Despesas_Mensais[Categoria],Despesas_Com_Comida_De_Gato[[#This Row],[Categoria de alimentação]])","v":{"v":1,"d":"R$ 1.00"}}]
[null,"Frutas e legumes",{"$f":"SUMIFS(Despesas_Mensais[Preço \n(soma)],Despesas_Mensais[Data],\">=\"&Data_Inicial,Despesas_Mensais[Data],\"<=\"&Data_Final,Despesas_Mensais[Categoria],Despesas_Com_Comida_De_Gato[[#This Row],[Categoria de alimentação]])","v":{"v":0,"d":"R$ 0.00"}}]
[null,"Carne",{"$f":"SUMIFS(Despesas_Mensais[Preço \n(soma)],Despesas_Mensais[Data],\">=\"&Data_Inicial,Despesas_Mensais[Data],\"<=\"&Data_Final,Despesas_Mensais[Categoria],Despesas_Com_Comida_De_Gato[[#This Row],[Categoria de alimentação]])","v":{"v":18,"d":"R$ 18.00"}}]
[null,"Refeições prontas",{"$f":"SUMIFS(Despesas_Mensais[Preço \n(soma)],Despesas_Mensais[Data],\">=\"&Data_Inicial,Despesas_Mensais[Data],\"<=\"&Data_Final,Despesas_Mensais[Categoria],Despesas_Com_Comida_De_Gato[[#This Row],[Categoria de alimentação]])","v":{"v":28,"d":"R$ 28.00"}}]
[null,"Doces",{"$f":"SUMIFS(Despesas_Mensais[Preço \n(soma)],Despesas_Mensais[Data],\">=\"&Data_Inicial,Despesas_Mensais[Data],\"<=\"&Data_Final,Despesas_Mensais[Categoria],Despesas_Com_Comida_De_Gato[[#This Row],[Categoria de alimentação]])","v":{"v":1.5,"d":"R$ 1.50"}}]
[null,"Outros",{"$f":"SUMIFS(Despesas_Mensais[Preço \n(soma)],Despesas_Mensais[Data],\">=\"&Data_Inicial,Despesas_Mensais[Data],\"<=\"&Data_Final,Despesas_Mensais[Categoria],Despesas_Com_Comida_De_Gato[[#This Row],[Categoria de alimentação]])","v":{"v":0,"d":"R$ 0.00"}}]
[null,"Total",{"$f":"SUBTOTAL(109,Despesas_Com_Comida_De_Gato[Despesas])","v":{"v":73.5,"d":"R$ 73.50"}}]
[]
[null,"Despesas por locais"]
[]
[null,"Lista de locais","Despesas"]
[null,"Mercearia",{"$f":"SUMIFS(Despesas_Mensais[Preço \n(soma)],Despesas_Mensais[Data],\">=\"&Data_Inicial,Despesas_Mensais[Data],\"<=\"&Data_Final,Despesas_Mensais[Local],Despesas_por_Locais[[#This Row],[Lista de locais]])","v":{"v":0,"d":"R$ 0.00"}}]
[null,"Cafeteria",{"$f":"SUMIFS(Despesas_Mensais[Preço \n(soma)],Despesas_Mensais[Data],\">=\"&Data_Inicial,Despesas_Mensais[Data],\"<=\"&Data_Final,Despesas_Mensais[Local],Despesas_por_Locais[[#This Row],[Lista de locais]])","v":{"v":0,"d":"R$ 0.00"}}]
[null,"Lanchonete",{"$f":"SUMIFS(Despesas_Mensais[Preço \n(soma)],Despesas_Mensais[Data],\">=\"&Data_Inicial,Despesas_Mensais[Data],\"<=\"&Data_Final,Despesas_Mensais[Local],Despesas_por_Locais[[#This Row],[Lista de locais]])","v":{"v":29,"d":"R$ 29.00"}}]
[null,"Supermercado",{"$f":"SUMIFS(Despesas_Mensais[Preço \n(soma)],Despesas_Mensais[Data],\">=\"&Data_Inicial,Despesas_Mensais[Data],\"<=\"&Data_Final,Despesas_Mensais[Local],Despesas_por_Locais[[#This Row],[Lista de locais]])","v":{"v":44.5,"d":"R$ 44.50"}}]
[null,"Entrega em casa",{"$f":"SUMIFS(Despesas_Mensais[Preço \n(soma)],Despesas_Mensais[Data],\">=\"&Data_Inicial,Despesas_Mensais[Data],\"<=\"&Data_Final,Despesas_Mensais[Local],Despesas_por_Locais[[#This Row],[Lista de locais]])","v":{"v":0,"d":"R$ 0.00"}}]
[null,"Restaurante",{"$f":"SUMIFS(Despesas_Mensais[Preço \n(soma)],Despesas_Mensais[Data],\">=\"&Data_Inicial,Despesas_Mensais[Data],\"<=\"&Data_Final,Despesas_Mensais[Local],Despesas_por_Locais[[#This Row],[Lista de locais]])","v":{"v":0,"d":"R$ 0.00"}}]
[null,"Outros",{"$f":"SUMIFS(Despesas_Mensais[Preço \n(soma)],Despesas_Mensais[Data],\">=\"&Data_Inicial,Despesas_Mensais[Data],\"<=\"&Data_Final,Despesas_Mensais[Local],Despesas_por_Locais[[#This Row],[Lista de locais]])","v":{"v":0,"d":"R$ 0.00"}}]
[null,"Total",{"$f":"SUBTOTAL(109,Despesas_por_Locais[Despesas])","v":{"v":73.5,"d":"R$ 73.50"}}]